fUSD/lending_fUSD_20250128
["ID","MTS","AMOUNT","RATE_DAILY","PERIOD"]
[350665894,1738043446618,-500.0,0.00020899,2]
[350665895,1738043446627,-500.0,0.00020899,2]
[350665896,1738043446637,-500.0,0.00020899,2]
[350665897,1738043446647,-303.84,0.00020899,2]
[350665898,1738043446656,-578.65,0.00020899,2]
[350665899,1738043446666,-804.48,0.00020899,2]
[350665900,1738043446675,-804.48,0.00020899,2]
[350665901,1738043446685,-804.48,0.00020899,2]
[350665902,1738043446695,-804.48,0.00020899,2]
[350665903,1738043446704,-804.48,0.00020899,2]
[350665904,1738043446714,-804.48,0.00020899,2]
[350665905,1738043446723,-500.0,0.00020899,2]
[350665906,1738043446732,-500.0,0.00020899,2]
[350665907,1738043446741,-500.0,0.00020899,2]
[350665908,1738043446751,-500.0,0.00020899,2]
[350665909,1738043446760,-446.36,0.00020899,2]
[350665910,1738043446770,-500.0,0.00020899,2]
[350665911,1738043446779,-500.0,0.00020899,2]
[350665912,1738043446788,-500.0,0.00020899,2]
[350665913,1738043446797,-500.0,0.00020899,2]
[350665914,1738043446806,-500.0,0.00020899,2]
[350665915,1738043446816,-500.0,0.00020899,2]
[350665916,1738043446825,-500.0,0.00020899,2]
[350665917,1738043446834,-500.0,0.00020899,2]
[350665918,1738043446844,-500.0,0.00020899,2]
[350665919,1738043446853,-500.0,0.00020899,2]
[350665920,1738043446863,-500.0,0.00020899,2]
[350665921,1738043446872,-500.0,0.00020899,2]
[350665922,1738043446882,-560.42,0.00020899,2]
[350665923,1738043446892,-560.42,0.00020899,2]
[350665924,1738043446901,-560.42,0.00020899,2]
[350665925,1738043446911,-560.42,0.00020899,2]
[350665926,1738043446921,-560.42,0.00020899,2]
[350665927,1738043446931,-560.42,0.00020899,2]
[350665928,1738043446940,-954.07,0.00020899,2]
[350665929,1738043446950,-954.07,0.00020899,2]
[350665930,1738043446959,-954.07,0.00020899,2]
[350665931,1738043446969,-954.07,0.00020899,2]
[350665932,1738043446978,-954.07,0.00020899,2]
[350665933,1738043446988,-954.07,0.00020899,2]
[350665934,1738043446997,-500.0,0.00020899,2]
[350665935,1738043447007,-500.0,0.00020899,2]
[350665936,1738043447016,-500.0,0.00020899,2]
[350665937,1738043447025,-604.50821346,0.00020899,2]
[350665938,1738043447035,-500.0,0.00020899,2]
[350665939,1738043447044,-512.22593163,0.00020899,2]
[350665940,1738043447054,-500.0,0.00020899,2]
[350665941,1738043447063,-500.0,0.00020899,2]
[350665942,1738043447073,-500.0,0.00020899,2]
[350665943,1738043447082,-500.0,0.00020899,2]
[350665944,1738043447091,-500.0,0.00020899,2]
[350665945,1738043447101,-500.0,0.00020899,2]
[350665946,1738043447111,-500.0,0.00020899,2]
[350665947,1738043447121,-508.99490009,0.00020899,2]
[350665948,1738043447130,-500.0,0.00020899,2]
[350665949,1738043447140,-500.0,0.00020899,2]
[350665950,1738043447150,-500.0,0.00020899,2]
[350665951,1738043447159,-500.0,0.00020899,2]
[350665952,1738043447169,-500.0,0.00020899,2]
[350665953,1738043447178,-500.0,0.00020899,2]
[350665954,1738043447187,-500.0,0.00020899,2]
[350665955,1738043447196,-500.0,0.00020899,2]
[350665956,1738043447205,-500.0,0.00020899,2]
[350665957,1738043447214,-500.0,0.00020899,2]
[350665958,1738043447223,-500.0,0.00020899,2]
[350665959,1738043447233,-500.0,0.00020899,2]
[350665960,1738043447244,-500.0,0.00020899,2]
[350665961,1738043447254,-500.0,0.00020899,2]
[350665962,1738043447263,-500.0,0.00020899,2]
[350665963,1738043447273,-500.0,0.00020899,2]
[350665964,1738043447282,-500.0,0.00020899,2]
[350665965,1738043447292,-500.0,0.00020899,2]
[350665966,1738043447301,-215.44,0.00020899,2]
[350665967,1738043447310,-500.0,0.00020899,2]
[350665968,1738043447319,-500.0,0.00020899,2]
[350665969,1738043447328,-500.0,0.00020899,2]
[350665970,1738043447337,-500.0,0.00020899,2]
[350665971,1738043447351,-500.0,0.00020899,2]
[350665972,1738043447363,-500.0,0.00020899,2]
[350665973,1738043447374,-500.0,0.00020899,2]
[350665974,1738043447387,-500.0,0.00020899,2]
[350665975,1738043447397,-520.169614,0.00020899,2]
[350665976,1738043447407,-500.0,0.00020899,2]
[350665977,1738043447418,-500.0,0.00020899,2]
[350665978,1738043447428,-500.0,0.00020899,2]
[350665979,1738043447438,-500.0,0.00020899,2]
[350665980,1738043447447,-500.0,0.00020899,2]
[350665981,1738043447458,-500.0,0.00020899,2]
[350665982,1738043447468,-500.0,0.00020899,2]
[350665983,1738043447477,-500.0,0.00020899,2]
[350665984,1738043447486,-502.32797022,0.00020899,2]
[350665985,1738043447495,-500.0,0.00020899,2]
[350665986,1738043447504,-500.0,0.00020899,2]
[350665987,1738043447513,-500.0,0.00020899,2]
[350665988,1738043447523,-500.0,0.00020899,2]
[350665989,1738043447532,-500.0,0.00020899,2]
[350665990,1738043447541,-500.0,0.00020899,2]
[350665991,1738043447551,-526.12,0.00020899,2]
[350665992,1738043447560,-593.53060782,0.00020899,2]
[350665993,1738043447569,-46412.04282782,0.00020899,2]
[350665994,1738043447589,-152.74738017,0.0002046,2]
[350665995,1738043447598,-2192.52850283,0.00020899,2]
[350665996,1738043447609,-1584.50361016,0.00020899,2]
[350665997,1738043447620,-6347.46666666,0.00020899,2]
[350665999,1738043447631,-375.286,0.00020899,2]
[350666000,1738043447644,-408.882,0.00020899,2]
[350666001,1738043447655,-397.05,0.00020899,2]
[350666002,1738043447666,-473.188,0.00020899,2]
[350666003,1738043447677,-4361.2755234,0.00020899,2]
[350666004,1738043447688,-462.04,0.00020899,2]
[350666005,1738043447699,-290299.68677636,0.00020899,2]
[350666006,1738043447710,-364987.13646575,0.00020899,2]
[350666007,1738043447721,-2852.5,0.00020899,2]
[350666008,1738043447736,-408.35146807,0.00020899,2]
[350666009,1738043447751,-3785.15416186,0.00020899,2]
[350666011,1738043466375,6449.96751612,0.00011826,2]
[350666012,1738043466656,6449.96751612,0.00011917,2]
[350666013,1738043466978,6449.96751612,0.00011907,2]
[350666014,1738043467268,6449.96751612,0.00011853,2]
[350666015,1738043467536,6449.96751612,0.00011915,2]
[350666016,1738043734314,160.35,0.00010137,2]
[350666020,1738043900343,701.17,0.00012,2]
[350666021,1738043909530,1000.0,0.00011,2]
[350666081,1738044566631,153.78,0.00010137,2]
[350666094,1738044631743,-300.0,0.00012999,2]
[350666095,1738044631753,-550.0,0.00013,2]
[350666096,1738044631763,-500.0,0.00013,2]
[350666097,1738044631774,-500.0,0.00013,2]
[350666098,1738044631784,-184.47,0.00013699,2]
[350666099,1738044631794,-150.0,0.00014028,2]
[350666100,1738044631804,-420.0,0.00014256,2]
[350666101,1738044631814,-150.0,0.000143,2]
[350666102,1738044631824,-150.0,0.000143,2]
[350666103,1738044631833,-600.0,0.00015,2]
[350666104,1738044631843,-160.35,0.00016813,2]
[350666105,1738044631853,-657.64,0.00016818,2]
[350666106,1738044631862,-650.0,0.00017,2]
[350666107,1738044631872,-153.78,0.00018065,2]
[350666108,1738044631881,-344.0,0.00018539,2]
[350666109,1738044631891,-150.0,0.00018539,2]
[350666110,1738044631901,-503.9,0.00018617,2]
[350666111,1738044631910,-1000.0,0.00018643,2]
[350666112,1738044631920,-489.62,0.00018669,2]
[350666113,1738044631929,-673.46,0.00018673,2]
[350666114,1738044631938,-182.80850112,0.00018822,2]
[350666115,1738044631947,-3996.87,0.00018852,2]
[350666116,1738044631956,-223.62,0.00018899,30]
[350666117,1738044631966,-152.72,0.000189,31]
[350666118,1738044631975,-152.72,0.000189,31]
[350666119,1738044631984,-152.72,0.000189,31]
[350666120,1738044631994,-152.72,0.000189,31]
[350666121,1738044632003,-152.72,0.000189,31]
[350666122,1738044632013,-152.72,0.000189,31]
[350666123,1738044632022,-152.72,0.000189,31]
[350666124,1738044632031,-152.72,0.000189,31]
[350666125,1738044632041,-152.72,0.000189,31]
[350666126,1738044632050,-152.72,0.000189,31]
[350666127,1738044632060,-152.72,0.000189,31]
[350666128,1738044632070,-152.72,0.000189,31]
[350666129,1738044632079,-152.72,0.000189,31]
[350666130,1738044632088,-152.72,0.000189,31]
[350666131,1738044632098,-152.72,0.000189,31]
[350666132,1738044632107,-152.72,0.000189,31]
[350666133,1738044632116,-152.72,0.000189,31]
[350666134,1738044632125,-169.79,0.00018903,2]
[350666135,1738044632134,-182.80850112,0.00018932,2]
[350666136,1738044632144,-250.0,0.00018956,2]
[350666137,1738044632155,-700.0,0.00019,2]
[350666138,1738044632165,-182.80850112,0.00019014,2]
[350666139,1738044632175,-657.64,0.00019082,2]
[350666140,1738044632184,-182.80850112,0.00019096,2]
[350666141,1738044632194,-1666.0,0.00019166,2]
[350666142,1738044632204,-150.0,0.00019178,2]
[350666143,1738044632214,-182.80850112,0.00019205,2]
[350666144,1738044632223,-1268.0,0.00019219,2]
[350666145,1738044632233,-2020.0,0.00019219,2]
[350666146,1738044632242,-637.0,0.00019219,2]
[350666147,1738044632251,-566.0,0.00019219,2]
[350666148,1738044632261,-150.0,0.00019219,2]
[350666149,1738044632270,-422.89276387,0.00019219,2]
[350666150,1738044632282,-492.18846894,0.00019219,2]
[350666151,1738044632294,-540.98963755,0.00019219,2]
[350666152,1738044632306,-409.92912964,0.00019219,2]
[350666154,1738044632316,-312.61320609,0.00019219,2]
[350666156,1738044632327,-949.38679391,0.00019219,2]
[350666157,1738044632337,-907.0,0.00019219,2]
[350666158,1738044632346,-782.0,0.00019219,2]
[350666159,1738044632355,-2950.0,0.00019219,2]
[350666160,1738044632364,-150.0,0.00019219,2]
[350666161,1738044632374,-182.80850112,0.00019288,2]
[350666162,1738044632383,-211.0,0.0001932,2]
[350666163,1738044632392,-205.0,0.0001932,2]
[350666164,1738044632404,-209.0,0.0001932,2]
[350666165,1738044632413,-1666.0,0.00019364,2]
[350666166,1738044632423,-673.46,0.00019364,2]
[350666167,1738044632432,-182.80850112,0.0001937,2]
[350666169,1738044632441,-223.79,0.00019426,2]
[350666171,1738044632450,-182.80850112,0.00019479,2]
[350666173,1738044632459,-1666.0,0.00019561,2]
[350666174,1738044632468,-182.80850112,0.00019562,2]
[350666178,1738044632478,-182.80850112,0.00019644,2]
[350666179,1738044632487,-150.0,0.00019683,2]
[350666182,1738044632497,-211.0,0.0001969,2]
[350666185,1738044632506,-205.0,0.0001969,2]
[350666187,1738044632515,-209.0,0.0001969,2]
[350666189,1738044632524,-182.80850112,0.00019753,2]
[350666191,1738044632534,-1666.0,0.00019759,2]
[350666192,1738044632543,-622.77000603,0.00019759,2]
[350666193,1738044632553,-1376.05453696,0.000198,2]
[350666194,1738044632562,-182.80850112,0.00019836,2]
[350666195,1738044632571,-1008.75023516,0.00019865,2]
[350666196,1738044632581,-1572.05,0.00019866,2]
[350666197,1738044632590,-3283.8903,0.00019899,2]
[350666198,1738044632599,-1252.2476,0.00019899,2]
[350666199,1738044632608,-5000.0,0.00019899,2]
[350666200,1738044632617,-340.8488,0.00019899,2]
[350666201,1738044632626,-7656.4366,0.00019899,2]
[350666202,1738044632636,-189.97139314,0.00019899,2]
[350666203,1738044632645,-186.97663198,0.000199,2]
[350666204,1738044632655,-1876.496,0.000199,2]
[350666205,1738044632663,-179.892,0.000199,2]
[350666206,1738044632672,-164.29648912,0.000199,2]
[350666207,1738044632681,-273.78425687,0.000199,2]
[350666208,1738044632691,-153.68810921,0.000199,3]
[350666209,1738044632699,-3938.41637941,0.000199,2]
[350666210,1738044632708,-189.97139313,0.000199,2]
[350666211,1738044632717,-227.87935078,0.000199,2]
[350666212,1738044632729,-164.27797926,0.000199,2]
[350666213,1738044632738,-1666.0,0.00019956,2]
[350666214,1738044632747,-250.0,0.0001997,2]
[350666215,1738044632756,-504.46506333,0.00019973,2]
[350666216,1738044632765,-164.74214183,0.00019973,2]
[350666217,1738044632775,-151.82037447,0.00019973,2]
[350666218,1738044632784,-500.0,0.00019973,2]
[350666219,1738044632793,-8861.24,0.00019989,2]
[350666220,1738044632802,-164.80713004,0.00019989,2]
[350666221,1738044632811,-393.59628594,0.00019998,2]
[350666222,1738044632821,-157.58401089,0.00019998,2]
[350666223,1738044632830,-500.0,0.00019998,2]
[350666224,1738044632839,-504.40530084,0.00019998,2]
[350666225,1738044632848,-500.0,0.00019998,2]
[350666226,1738044632857,-500.0,0.00019998,2]
[350666227,1738044632867,-806.22,0.00019998,2]
[350666228,1738044632876,-806.22,0.00019998,2]
[350666229,1738044632885,-747.99,0.00019998,2]
[350666230,1738044632894,-747.99,0.00019998,2]
[350666231,1738044632904,-569.84,0.00019998,2]
[350666232,1738044632912,-569.84,0.00019998,2]
[350666233,1738044632921,-500.0,0.00019998,2]
[350666234,1738044632930,-321.2,0.00019998,2]
[350666235,1738044632939,-500.0,0.00019998,2]
[350666236,1738044632948,-500.0,0.00019998,2]
[350666237,1738044632957,-675.8,0.00019998,2]
[350666238,1738044632967,-675.8,0.00019998,2]
[350666239,1738044632975,-500.0,0.00019998,2]
[350666240,1738044632984,-500.0,0.00019998,2]
[350666241,1738044632993,-598.42,0.00019998,2]
[350666242,1738044633002,-500.0,0.00019998,2]
[350666243,1738044633011,-500.0,0.00019998,2]
[350666244,1738044633020,-226.798485,0.00019998,2]
[350666245,1738044633030,-500.0,0.00019998,2]
[350666246,1738044633039,-500.0,0.00019998,2]
[350666247,1738044633048,-517.85092964,0.00019998,2]
[350666248,1738044633057,-38655.99083031,0.00019999,2]
[350666249,1738044633081,-599.69194116,0.00019999,2]
[350666250,1738044633092,-2721.717,0.00019999,2]
[350666251,1738044633103,-5918.99914061,0.00019999,2]
[350666252,1738044633115,-466.42930039,0.00019999,2]
[350666253,1738044633127,-1842.82074556,0.00019999,2]
[350666254,1738044633138,-20297.20994581,0.00019999,2]
[350666255,1738044633149,-6822.04953256,0.00019999,2]
[350666260,1738044637734,-500.0,0.00019998,2]
[350666261,1738044637744,-531.1240031,0.00019998,2]
[350666262,1738044637754,-234.0197032,0.00019998,2]
[350666263,1738044637764,-10591.56008274,0.00019999,2]
[350666264,1738044637775,-477.40835058,0.00019999,2]
[350666265,1738044637784,-500.0,0.00019999,2]
[350666266,1738044637793,-515.44956368,0.00019999,2]
[350666267,1738044637803,-500.0,0.00019999,2]
[350666268,1738044637813,-500.0,0.00019999,2]
[350666269,1738044637823,-500.0,0.00019999,2]
[350666270,1738044637832,-500.0,0.00019999,2]
[350666271,1738044637843,-500.0,0.00019999,2]
[350666272,1738044637853,-500.0,0.00019999,2]
[350666273,1738044637862,-500.0,0.00019999,2]
[350666274,1738044637872,-432.96736551,0.00019999,2]
[350666275,1738044637881,-506.98980362,0.00019999,2]
[350666276,1738044637890,-500.0,0.00019999,2]
[350666277,1738044637900,-518.12270856,0.00019999,2]
[350666278,1738044637910,-500.0,0.00019999,2]
[350666279,1738044637919,-500.0,0.00019999,2]
[350666280,1738044637928,-500.0,0.00019999,2]
[350666281,1738044637937,-500.0,0.00019999,2]
[350666282,1738044637946,-500.0,0.00019999,2]
[350666283,1738044637955,-500.0,0.00019999,2]
[350666284,1738044637964,-500.0,0.00019999,2]
[350666285,1738044637974,-500.0,0.00019999,2]
[350666286,1738044637983,-500.0,0.00019999,2]
[350666287,1738044637992,-500.0,0.00019999,2]
[350666288,1738044638002,-247.1386416,0.00019999,2]
[350666289,1738044638011,-500.0,0.00019999,2]
[350666290,1738044638020,-500.0,0.00019999,2]
[350666291,1738044638030,-500.0,0.00019999,2]
[350666292,1738044638039,-500.0,0.00019999,2]
[350666293,1738044638049,-500.0,0.00019999,2]
[350666294,1738044638058,-510.38441832,0.00019999,2]
[350666295,1738044638067,-500.0,0.00019999,2]
[350666296,1738044638076,-500.0,0.00019999,2]
[350666297,1738044638085,-500.0,0.00019999,2]
[350666298,1738044638095,-500.0,0.00019999,2]
[350666299,1738044638104,-504.01798472,0.00019999,2]
[350666300,1738044638114,-500.0,0.00019999,2]
[350666301,1738044638123,-500.0,0.00019999,2]
[350666302,1738044638132,-500.0,0.00019999,2]
[350666303,1738044638141,-500.0,0.00019999,2]
[350666304,1738044638150,-500.0,0.00019999,2]
[350666305,1738044638161,-506.08052456,0.00019999,2]
[350666306,1738044638171,-500.0,0.00019999,2]
[350666308,1738044638181,-437.26628482,0.00019999,2]
[350666309,1738044638195,-62.73371518,0.00019999,2]
[350666310,1738044638204,-500.0,0.00019999,2]
[350666311,1738044638213,-500.0,0.00019999,2]
[350666312,1738044638223,-641.84076272,0.00019999,2]
[350666313,1738044638232,-317.68619882,0.00019999,2]
[350666314,1738044638244,-182.31380118,0.00019999,2]
[350666315,1738044638254,-500.0,0.00019999,2]
[350666317,1738044638264,-500.0,0.00019999,2]
[350666318,1738044638273,-271.9323436,0.00019999,2]
[350666319,1738044638286,-228.0676564,0.00019999,2]
[350666320,1738044638296,-465.36945191,0.00019999,2]
[350666321,1738044638307,-34.63054809,0.00019999,2]
[350666322,1738044638317,-500.0,0.00019999,2]
[350666323,1738044638326,-420.36620302,0.00019999,2]
[350666324,1738044638336,-500.0,0.00019999,2]
[350666325,1738044638346,-500.0,0.00019999,2]
[350666326,1738044638355,-500.0,0.00019999,2]
[350666327,1738044638365,-501.45057857,0.00019999,2]
[350666328,1738044638375,-500.0,0.00019999,2]
[350666329,1738044638384,-500.0,0.00019999,2]
[350666330,1738044638394,-308.38620458,0.00019999,2]
[350666331,1738044638403,-500.0,0.00019999,2]
[350666332,1738044638414,-500.0,0.00019999,2]
[350666333,1738044638423,-503.17030575,0.00019999,2]
[350666334,1738044638433,-500.0,0.00019999,2]
[350666335,1738044638442,-500.0,0.00019999,2]
[350666336,1738044638452,-509.49154452,0.00019999,2]
[350666337,1738044638461,-500.0,0.00019999,2]
[350666338,1738044638470,-500.0,0.00019999,2]
[350666339,1738044638480,-500.0,0.00019999,2]
[350666340,1738044638489,-508.06825524,0.00019999,2]
[350666341,1738044638499,-500.0,0.00019999,2]
[350666342,1738044638508,-500.0,0.00019999,2]
[350666343,1738044638518,-515.93644069,0.00019999,2]
[350666344,1738044638527,-500.0,0.00019999,2]
[350666345,1738044638536,-500.0,0.00019999,2]
[350666346,1738044638546,-500.0,0.00019999,2]
[350666347,1738044638555,-500.0,0.00019999,2]
[350666348,1738044638566,-500.0,0.00019999,2]
[350666349,1738044638575,-515.75649548,0.00019999,2]
[350666350,1738044638584,-168.99605069,0.00019999,2]
[350666351,1738044638594,-500.0,0.00019999,2]
[350666352,1738044638603,-500.0,0.00019999,2]
[350666353,1738044638613,-500.0,0.00019999,2]
[350666354,1738044638622,-500.0,0.00019999,2]
[350666355,1738044638632,-373.29518814,0.00019999,2]
[350666356,1738044638641,-500.0,0.00019999,2]
[350666357,1738044638651,-500.0,0.00019999,2]
[350666358,1738044638661,-500.0,0.00019999,2]
[350666359,1738044638671,-500.0,0.00019999,2]
[350666360,1738044638680,-245.44322015,0.00019999,2]
[350666361,1738044638694,-256.38950463,0.00019999,2]
[350666362,1738044638704,-500.0,0.00019999,2]
[350666363,1738044638713,-529.84362235,0.00019999,2]
[350666364,1738044638724,-500.0,0.00019999,2]
[350666365,1738044638735,-513.73904807,0.00019999,2]
[350666366,1738044638744,-500.0,0.00019999,2]
[350666367,1738044638754,-630.57331357,0.00019999,2]
[350666368,1738044638763,-500.0,0.00019999,2]
[350666369,1738044638772,-500.0,0.00019999,2]
[350666370,1738044638782,-500.0,0.00019999,2]
[350666371,1738044638791,-237.98607426,0.00019999,2]
[350666372,1738044638800,-500.0,0.00019999,2]
[350666373,1738044638811,-111.56578712,0.00019999,2]
[350666374,1738044638824,-388.43421288,0.00019999,2]
[350666375,1738044638833,-500.0,0.00019999,2]
[350666376,1738044638842,-111.62340475,0.00019999,2]
[350666377,1738044638854,-525.17249649,0.00019999,2]
[350666378,1738044638863,-500.0,0.00019999,2]
[350666379,1738044638873,-84.59362604,0.00019999,2]
[350666380,1738044638884,-415.40637396,0.00019999,2]
[350666381,1738044638894,-503.21411931,0.00019999,2]
[350666382,1738044638902,-500.0,0.00019999,2]
[350666383,1738044638912,-500.0,0.00019999,2]
[350666384,1738044638922,-517.78197137,0.00019999,2]
[350666385,1738044638931,-500.0,0.00019999,2]
[350666386,1738044638940,-500.0,0.00019999,2]
[350666387,1738044638949,-54.1399653,0.00019999,2]
[350666433,1738044640170,-584.69456571,0.000199,2]
[350666445,1738044640275,-376.01831051,0.000199,2]
[350666542,1738044642774,-6230.0,0.000199,2]
[350666543,1738044642849,-152.74738017,0.00019899,2]
[350666544,1738044642859,-21444.65746333,0.000199,2]
[350666545,1738044642868,-182.61679418,0.000199,2]
[350666546,1738044642878,-448.89646361,0.00019999,2]
[350666547,1738044642888,-500.0,0.00019999,2]
[350666548,1738044642897,-500.0,0.00019999,2]
[350666549,1738044642907,-500.82891603,0.00019999,2]
[350666550,1738044642916,-500.0,0.00019999,2]
[350666551,1738044642926,-500.0,0.00019999,2]
[350666552,1738044642936,-500.0,0.00019999,2]
[350666553,1738044642945,-500.0,0.00019999,2]
[350666554,1738044642954,-503.24058758,0.00019999,2]
[350666555,1738044642964,-500.0,0.00019999,2]
[350666556,1738044642973,-500.0,0.00019999,2]
[350666557,1738044642982,-500.0,0.00019999,2]
[350666558,1738044642992,-500.0,0.00019999,2]
[350666559,1738044643001,-621.69,0.00019999,2]
[350666560,1738044643011,-500.0,0.00019999,2]
[350666561,1738044643021,-500.0,0.00019999,2]
[350666562,1738044643031,-500.0,0.00019999,2]
[350666563,1738044643040,-500.0,0.00019999,2]
[350666564,1738044643050,-500.0,0.00019999,2]
[350666565,1738044643058,-165.859843,0.00019999,2]
[350666566,1738044643068,-500.0,0.00019999,2]
[350666567,1738044643077,-500.0,0.00019999,2]
[350666568,1738044643087,-507.68552822,0.00019999,2]
[350666569,1738044643097,-500.0,0.00019999,2]
[350666570,1738044643107,-500.0,0.00019999,2]
[350666571,1738044643116,-503.45562398,0.00019999,2]
[350666572,1738044643126,-500.0,0.00019999,2]
[350666573,1738044643135,-500.0,0.00019999,2]
[350666575,1738044643145,-500.0,0.00019999,2]
[350666576,1738044643154,-500.0,0.00019999,2]
[350666577,1738044643165,-498.28447142,0.00019999,2]
[350666578,1738044643174,-516.28956497,0.00019999,2]
[350666579,1738044643184,-510.78174949,0.00019999,2]
[350666580,1738044643193,-500.0,0.00019999,2]
[350666581,1738044643202,-271.36518297,0.00019999,2]
[350666582,1738044643212,-500.0,0.00019999,2]
[350666583,1738044643221,-500.0,0.00019999,2]
[350666584,1738044643231,-502.13758149,0.00019999,2]
[350666585,1738044643240,-500.0,0.00019999,2]
[350666586,1738044643251,-500.0,0.00019999,2]
[350666587,1738044643261,-506.33096478,0.00019999,2]
[350666588,1738044643271,-500.0,0.00019999,2]
[350666589,1738044643280,-500.0,0.00019999,2]
[350666590,1738044643289,-505.83181556,0.00019999,2]
[350666591,1738044643298,-500.0,0.00019999,2]
[350666592,1738044643307,-500.0,0.00019999,2]
[350666593,1738044643317,-507.1610707,0.00019999,2]
[350666594,1738044643326,-500.0,0.00019999,2]
[350666595,1738044643335,-500.0,0.00019999,2]
[350666596,1738044643344,-374.17451887,0.00019999,2]
[350666597,1738044643354,-500.0,0.00019999,2]
[350666598,1738044643363,-162.07401358,0.00019999,2]
[350666599,1738044643372,-500.0,0.00019999,2]
[350666600,1738044643382,-500.0,0.00019999,2]
[350666601,1738044643391,-507.16108962,0.00019999,2]
[350666602,1738044643401,-500.0,0.00019999,2]
[350666603,1738044643410,-500.0,0.00019999,2]
[350666604,1738044643420,-500.0,0.00019999,2]
[350666605,1738044643429,-508.34170482,0.00019999,2]
[350666606,1738044643438,-500.0,0.00019999,2]
[350666607,1738044643448,-503.17628624,0.00019999,2]
[350666608,1738044643457,-500.0,0.00019999,2]
[350666609,1738044643467,-500.0,0.00019999,2]
[350666610,1738044643476,-495.48677105,0.00019999,2]
[350666611,1738044643486,-500.0,0.00019999,2]
[350666612,1738044643495,-500.0,0.00019999,2]
[350666613,1738044643504,-500.0,0.00019999,2]
[350666614,1738044643514,-506.77723076,0.00019999,2]
[350666615,1738044643524,-500.0,0.00019999,2]
[350666616,1738044643533,-507.81266776,0.00019999,2]
[350666617,1738044643543,-500.0,0.00019999,2]
[350666618,1738044643552,-500.0,0.00019999,2]
[350666619,1738044643561,-500.0,0.00019999,2]
[350666620,1738044643570,-500.0,0.00019999,2]
[350666621,1738044643579,-500.0,0.00019999,2]
[350666622,1738044643589,-500.0,0.00019999,2]
[350666623,1738044643598,-503.45533526,0.00019999,2]
[350666624,1738044643607,-500.0,0.00019999,2]
[350666625,1738044643616,-500.0,0.00019999,2]
[350666626,1738044643625,-209.69988264,0.00019999,2]
[350666627,1738044643636,-500.0,0.00019999,2]
[350666628,1738044643646,-500.0,0.00019999,2]
[350666629,1738044643656,-508.49370601,0.00019999,2]
[350666630,1738044643666,-500.0,0.00019999,2]
[350666631,1738044643676,-500.0,0.00019999,2]
[350666632,1738044643685,-502.99588103,0.00019999,2]
[350666633,1738044643695,-500.0,0.00019999,2]
[350666634,1738044643705,-536.90737505,0.00019999,2]
[350666635,1738044643714,-500.0,0.00019999,2]
[350666636,1738044643724,-500.0,0.00019999,2]
[350666637,1738044643736,-513.42689862,0.00019999,2]
[350666638,1738044643745,-500.0,0.00019999,2]
[350666639,1738044643755,-504.22357482,0.00019999,2]
[350666640,1738044643764,-500.0,0.00019999,2]
[350666641,1738044643774,-500.0,0.00019999,2]
[350666642,1738044643783,-502.95473529,0.00019999,2]
[350666643,1738044643792,-500.0,0.00019999,2]